bitfinex-derivatives/quotes_ETHF0:USTF0_20260131
["timestamp","ask_amount","ask_price","bid_price","bid_amount"]
[1769895825334,3.81732303,2411.7,2410.6,3.7037471]
[1769895825635,6.25697437,2411.7,2410.7,3.7037471]
[1769895826133,0.00465134,2411.5,2410.7,3.7037471]
[1769895826631,3.81732303,2410.7,2409.6,4.67424709]
[1769895826834,6.25232303,2410.7,2409.7,3.7037471]
[1769895827034,3.81732303,2410.6,2409.5,4.67424709]
[1769895827333,3.81732303,2410.6,2409.7,7.78731942]
[1769895827637,3.81732303,2410.6,2409.7,3.7037471]
[1769895827938,3.81732303,2410.4,2409.2,4.6792022]
[1769895828234,4.02503303,2410.4,2409.2,0.00495511]
[1769895828636,3.81732303,2410.2,2409.2,0.00495511]
[1769895828828,4.02919946,2410.2,2409.2,0.00495511]
[1769895829034,0.00414643,2410.2,2409.2,3.70870221]
[1769895829334,0.00414643,2410.2,2409.3,7.78731942]
[1769895829535,0.00414643,2410.2,2409.4,7.78731942]
[1769895829729,0.00414643,2410.2,2409.6,7.78731942]
[1769895829926,0.00414643,2410.2,2409.7,3.7037471]
[1769895830140,4.02500303,2410.8,2409.7,3.7037471]
[1769895830336,2.435,2410.7,2409.7,3.7037471]
[1769895830735,2.435,2410.7,2409.8,7.78731942]
[1769895830935,2.435,2410.7,2409.8,3.7037471]
[1769895831138,2.43993869,2410.7,2409.8,7.78731942]
[1769895832339,2.43993869,2410.7,2410.0,4.08357232]
[1769895832538,2.43993869,2410.7,2410.0,7.78731942]
[1769895832838,0.00493869,2410.7,2410.1,4.08357232]
[1769895833338,0.00493869,2410.7,2410.0,3.7037471]
[1769895833339,3.82226172,2410.7,2410.2,4.08357232]
[1769895833538,3.82226172,2410.7,2410.1,4.08357232]
[1769895833936,3.82226172,2410.7,2409.6,3.7037471]
[1769895834339,3.82226172,2410.7,2409.5,3.63965194]
[1769895834539,3.82226172,2410.7,2409.5,11.42697136]
[1769895834740,3.82226172,2410.7,2409.6,7.34339904]
[1769895835042,3.82226172,2410.7,2409.7,3.7037471]
[1769895835735,3.82226172,2410.7,2409.8,7.78731942]
[1769895835940,3.82226172,2410.7,2409.8,3.7037471]
[1769895836139,3.82226172,2410.7,2409.8,7.78731942]
[1769895837342,3.82226172,2410.7,2409.9,4.08357232]
[1769895837536,0.00493869,2410.7,2410.1,7.78731942]
[1769895837737,0.00493869,2410.7,2410.1,3.7037471]
[1769895837939,0.00493869,2410.7,2410.3,4.08357232]
[1769895838138,3.82226172,2410.7,2409.7,7.34339904]
[1769895838340,3.82226172,2410.7,2409.7,3.7037471]
[1769895838942,2.435,2410.6,2409.7,3.7037471]
[1769895839139,3.81732303,2410.5,2409.6,3.91618393]
[1769895839441,3.81732303,2410.5,2409.7,4.08357232]
[1769895839644,3.81732303,2410.5,2409.4,7.61993103]
[1769895839838,2.435,2410.4,2409.5,3.7037471]
[1769895840136,2.435,2410.4,2409.5,7.78731942]
[1769895840339,2.435,2410.4,2409.6,4.08357232]
[1769895841033,3.81732303,2410.3,2409.3,7.55583587]
[1769895841234,3.81732303,2410.3,2409.2,0.00495511]
[1769895841539,4.02506303,2410.1,2409.2,0.00495511]
[1769895841941,3.81732303,2409.9,2409.2,0.00495511]
[1769895842137,6.25232303,2409.8,2409.2,0.00495511]
[1769895842637,3.81732303,2409.7,2409.2,0.00495511]
[1769895843040,3.81732303,2409.4,2408.4,3.91618393]
[1769895843243,3.81732303,2409.2,2408.0,10.87783587]
[1769895843446,3.81732303,2409.0,2407.8,7.55583587]
[1769895843648,3.81732303,2408.7,2407.6,7.34339904]
[1769895843844,3.81732303,2408.5,2407.6,3.7037471]
[1769895844143,3.81732303,2408.5,2407.6,0.00371242]
[1769895844341,0.00477454,2408.7,2407.6,0.00371242]
[1769895844342,0.00477454,2408.7,2407.8,4.08357232]
[1769895844543,0.00477454,2408.7,2407.8,3.7037471]
[1769895844752,2.435,2409.0,2408.3,3.7037471]
[1769895845148,2.435,2409.0,2408.5,4.08357232]
[1769895845345,3.81732303,2409.4,2408.5,4.08357232]
[1769895845542,2.436,2409.3,2408.3,3.7037471]
[1769895845746,3.81732303,2409.2,2408.0,3.7037471]
[1769895845941,3.81732303,2409.0,2407.7,3.7037471]
[1769895846346,3.81732303,2409.0,2407.7,7.78731942]
[1769895846542,4.02515303,2409.0,2407.7,7.78731942]
[1769895846747,6.25332303,2408.9,2407.8,3.7037471]
[1769895847145,6.25332303,2408.9,2407.9,4.08357232]
[1769895847347,3.8324986,2408.8,2407.7,3.74810045]
[1769895847542,3.8324986,2408.8,2407.6,0.00371242]
[1769895847848,4.0403486,2408.8,2407.6,0.00371242]
[1769895850154,4.0403486,2408.8,2407.6,7.83538519]
[1769895850353,3.8324986,2408.6,2407.6,4.08728474]
[1769895850551,3.8324986,2408.4,2407.6,0.00371242]
[1769895850750,2.436,2408.5,2407.0,3.74810045]
[1769895850751,4.0404086,2408.1,2407.0,3.74810045]
[1769895850952,2.436,2408.0,2407.1,3.74810045]
[1769895851451,6.2684986,2408.0,2407.5,4.08357232]
[1769895851645,3.8324986,2408.3,2407.5,3.75252137]
[1769895851845,2.436,2408.2,2407.7,4.08357232]
[1769895852051,3.8324986,2408.6,2408.0,4.08357232]
[1769895852257,3.8324986,2409.2,2408.1,3.74810045]
[1769895852455,2.437,2409.1,2408.3,4.08357232]
[1769895852856,6.4773186,2409.1,2408.4,4.08357232]
[1769895853058,3.8324986,2409.0,2408.2,4.08357232]
[1769895853257,3.8324986,2409.0,2408.0,3.74810045]
[1769895853458,2.437,2408.9,2408.0,3.74810045]
[1769895853654,2.437,2408.9,2408.2,4.08357232]
[1769895854057,0.20782,2409.1,2408.3,4.08357232]
[1769895854058,6.2694986,2408.8,2408.3,4.08357232]
[1769895854358,6.2694986,2408.8,2408.1,4.08357232]
[1769895854559,6.2694986,2408.8,2408.2,4.08357232]
[1769895854955,6.2694986,2408.8,2408.0,3.74810045]
[1769895855353,6.2694986,2408.8,2408.2,4.08357232]
[1769895855555,6.2694986,2408.8,2408.3,4.08357232]
[1769895856054,6.2694986,2408.8,2408.4,4.08357232]
[1769895856255,6.2694986,2408.8,2408.3,4.08357232]
[1769895856659,0.20779,2409.5,2408.7,3.74810045]
[1769895856857,3.8324986,2409.8,2408.7,3.74810045]
[1769895857052,3.8324986,2409.8,2408.9,4.07894571]
[1769895857257,2.437,2409.9,2409.1,7.82704616]
[1769895857457,3.8324986,2410.1,2409.1,3.74810045]
[1769895857754,0.00293058,2410.1,2409.5,4.07894571]
[1769895857961,0.00293058,2410.1,2409.5,0.00411807]
[1769895858155,0.36396318,2410.3,2410.0,4.07894571]
[1769895858360,2.437,2410.5,2410.0,4.07894571]
[1769895858552,3.8324986,2410.4,2409.5,0.00411807]
[1769895858757,3.8324986,2410.4,2409.7,4.07894571]
[1769895858962,2.437,2410.5,2409.7,4.07894571]
[1769895859157,2.44041757,2410.5,2409.8,4.07894571]
[1769895859360,2.44041757,2410.5,2409.7,4.07894571]
[1769895859559,2.44041757,2410.5,2409.8,4.07894571]
[1769895859757,3.8324986,2410.4,2409.5,0.00411807]
[1769895859960,3.8324986,2410.2,2409.5,0.00411807]
[1769895860261,6.2694986,2410.1,2409.5,0.00411807]
[1769895860655,6.2694986,2410.1,2409.6,4.07894571]
[1769895860963,3.8324986,2410.0,2409.0,3.74810045]
[1769895861165,3.8324986,2410.0,2409.1,3.74810045]
[1769895861958,4.0402486,2409.9,2409.1,0.00504009]
[1769895862358,0.20775,2409.9,2409.1,3.75314054]
[1769895862657,2.437,2410.1,2409.1,0.00504009]
[1769895862658,0.20776,2409.8,2409.1,0.00504009]
[1769895862860,0.20778,2409.6,2408.5,6.15764925]
[1769895863060,6.2694986,2409.5,2408.5,3.74810045]
[1769895863765,0.20781,2409.3,2408.5,3.75313475]
[1769895864659,2.437,2409.5,2408.5,3.75313475]
[1769895864859,2.436,2409.7,2408.6,3.74810045]
[1769895865053,2.436,2409.7,2408.5,0.0050343]
[1769895865054,0.2078,2409.4,2408.5,0.0050343]
[1769895865359,0.20781,2409.3,2408.5,0.0050343]
[1769895865558,2.436,2409.2,2408.5,0.0050343]
[1769895866257,2.436,2409.2,2408.0,6.15764925]
[1769895866258,3.8324986,2409.1,2408.0,6.15764925]
[1769895866457,0.20782,2409.2,2408.1,3.74810045]
[1769895866658,0.20782,2409.2,2408.3,3.74810045]
[1769895867261,0.20782,2409.2,2408.3,3.7532583]
[1769895867658,0.20777,2409.7,2408.3,2.41470665]
[1769895867863,2.437,2409.6,2408.4,3.74810045]
[1769895868057,2.64478,2409.6,2408.4,3.74810045]
[1769895868564,2.64478,2409.6,2408.5,3.74810045]
[1769895868759,2.64478,2409.6,2408.3,0.00515785]
[1769895868760,3.8324986,2409.3,2408.3,0.00515785]
[1769895868964,4.0403086,2409.3,2408.3,0.00515785]
[1769895869165,4.0403086,2409.3,2408.3,2.41470665]
[1769895869567,0.20782,2409.1,2408.3,0.00515785]
[1769895870364,2.64482,2409.1,2408.4,3.8878242]
[1769895870662,0.20782,2409.1,2408.4,10.04547345]
[1769895870866,0.20782,2409.1,2408.5,3.8878242]
[1769895871062,3.8324986,2409.5,2408.5,10.04547345]
[1769895871364,3.8324986,2409.2,2408.4,6.297373]
[1769895871563,3.8324986,2409.2,2408.4,3.8878242]
[1769895871767,2.437,2409.1,2408.4,3.8878242]
[1769895872564,2.437,2409.1,2408.3,6.30253085]
[1769895873165,4.0403386,2408.9,2408.3,0.00515785]
[1769895874763,4.0402986,2409.4,2408.3,3.7532583]
[1769895875067,2.6448,2409.4,2408.6,3.74810045]
[1769895876061,0.20775,2410.0,2409.0,3.74810045]
[1769895876265,0.20775,2410.0,2409.1,3.74810045]
[1769895877068,2.64475,2410.0,2409.1,3.74810045]
[1769895877268,0.20775,2410.0,2409.1,3.74810045]
[1769895877471,2.64475,2410.0,2409.1,3.74810045]
[1769895878271,0.20775,2410.0,2409.1,3.74810045]
[1769895878476,2.64475,2410.0,2409.2,3.86680872]
[1769895879373,0.20775,2410.0,2409.2,3.86680872]
[1769895882173,0.20775,2410.0,2409.2,7.75463292]
[1769895882574,0.21111757,2410.5,2409.3,3.93840198]
[1769895882776,0.21111757,2410.5,2409.6,3.93840198]
[1769895883672,0.20771,2410.4,2409.6,3.93840198]
[1769895883876,4.59786899,2410.4,2409.4,6.33496981]
[1769895884176,4.03342982,2410.1,2409.3,3.92803569]
[1769895884376,4.24117982,2409.9,2409.0,3.93840198]
[1769895884878,0.20775,2409.9,2409.0,3.93840198]
[1769895885780,4.24117982,2409.9,2409.0,3.93840198]
[1769895886669,4.24117982,2409.9,2409.0,7.57805392]
[1769895886975,0.20775,2409.9,2409.1,3.93840198]
[1769895887972,4.24117982,2409.9,2409.1,3.93840198]
[1769895888773,4.03342982,2409.4,2408.3,0.00515785]
[1769895888973,2.436,2409.3,2408.3,3.94355983]
[1769895889174,2.64381,2409.3,2408.3,3.94355983]
[1769895889376,0.20781,2409.2,2408.3,3.94355983]
[1769895890276,0.20781,2409.2,2408.4,3.93840198]
[1769895890976,2.436,2410.0,2408.6,3.93840198]
[1769895891169,6.46942982,2410.0,2408.6,3.93840198]
[1769895891368,4.03342982,2409.9,2408.6,7.57805392]
[1769895891571,4.03342982,2409.9,2408.7,3.93840198]
[1769895892178,0.20777,2409.7,2408.7,3.93840198]
[1769895892579,2.436,2409.6,2408.7,3.93840198]
[1769895895981,2.436,2409.6,2408.8,3.93840198]
[1769895896177,2.436,2409.6,2408.9,3.93840198]
[1769895896378,2.64378,2409.6,2408.8,3.89481985]
[1769895896779,2.64378,2409.6,2408.7,7.83322183]
[1769895896977,2.64378,2409.6,2408.8,3.89481985]
[1769895897480,2.64378,2409.6,2408.8,7.83322183]
[1769895897680,2.64378,2409.6,2408.8,3.93840198]
[1769895897875,0.20778,2409.6,2409.0,3.93840198]
[1769895898081,0.20776,2409.9,2409.1,3.93840198]
[1769895898380,2.64376,2409.9,2409.1,3.93840198]
[1769895899580,0.20772,2410.3,2409.1,3.93840198]
[1769895899782,0.20772,2410.3,2409.3,3.93840198]
[1769895899978,0.20772,2410.3,2409.4,7.83322183]
[1769895900281,4.24115982,2410.2,2409.4,3.93840198]
[1769895900473,2.436,2410.1,2409.4,3.89481985]
[1769895900678,4.24116982,2410.0,2409.2,3.89481985]
[1769895900879,4.24116982,2410.0,2409.1,3.93840198]
[1769895901076,4.24116982,2410.0,2409.2,3.88651847]
[1769895901279,4.24116982,2410.0,2408.7,3.93840198]
[1769895901478,4.24116982,2410.0,2408.9,3.93840198]
[1769895902987,0.20778,2409.6,2408.9,3.93840198]
[1769895903180,2.64378,2409.6,2408.9,3.93840198]
[1769895903478,4.24121982,2409.5,2408.6,7.57805392]
[1769895903777,4.24121982,2409.5,2408.7,7.79952656]
[1769895903983,0.20775,2410.0,2408.9,3.93840198]
[1769895904186,0.56443917,2410.4,2409.3,3.93840198]
[1769895904378,3.00043917,2410.4,2409.5,3.93840198]
[1769895904774,0.35672917,2410.4,2409.5,3.93840198]
[1769895904979,0.00341757,2410.5,2409.7,3.93840198]
[1769895905181,0.00341757,2410.5,2409.8,7.94367414]
[1769895905380,0.00341757,2410.5,2409.8,3.93840198]
[1769895905876,0.20769,2410.6,2409.8,3.93840198]
[1769895906084,4.03342982,2411.1,2409.8,3.93840198]
[1769895906278,0.2077,2410.6,2409.8,3.93840198]
[1769895906474,0.57070346,2411.1,2410.2,3.93840198]
[1769895906673,4.03342982,2411.6,2410.4,3.93840198]
[1769895906876,4.40005493,2411.6,2410.5,3.99241409]
[1769895907080,4.40005493,2411.6,2410.4,0.0045065]
[1769895907379,3.77792241,2411.1,2410.4,0.0045065]
[1769895907581,2.436,2411.0,2410.4,0.0045065]
[1769895907983,0.20764,2411.2,2410.4,4.01834805]
[1769895908382,3.77792241,2411.5,2410.4,4.01834805]
[1769895908589,2.436,2411.5,2410.6,4.01384155]
[1769895908882,3.323,2412.0,2410.6,4.01384155]
[1769895908883,3.98547241,2412.3,2410.7,4.01384155]
[1769895909087,0.60742909,2412.3,2411.0,4.01384155]
[1769895909383,6.8213515,2412.3,2411.1,4.01384155]
[1769895909585,3.98548241,2412.2,2411.1,4.01384155]
[1769895909981,0.21158967,2412.2,2411.1,4.01384155]
[1769895910389,2.64758967,2412.2,2411.1,4.01384155]
[1769895911182,3.98951208,2412.2,2411.1,4.01384155]
[1769895911384,6.42551208,2412.2,2411.1,4.01384155]
[1769895911583,3.77792241,2412.1,2411.1,4.01384155]
[1769895911776,3.98549241,2412.0,2411.1,4.01384155]
[1769895911982,0.20757,2412.0,2411.1,4.01384155]
[1769895912185,0.2076,2411.7,2410.8,4.01384155]
[1769895912385,3.77792241,2411.7,2410.8,4.01384155]
[1769895912586,3.98554241,2411.5,2410.5,4.01384155]
[1769895912886,3.98555241,2411.3,2410.4,0.0045065]
[1769895913988,3.98557241,2411.1,2410.4,0.0045065]
[1769895914183,3.98557241,2411.1,2410.0,4.01384155]
[1769895915289,3.98557241,2411.1,2410.0,4.01818965]
[1769895915899,3.98558241,2411.0,2410.0,4.01818965]
[1769895916101,3.77792241,2410.8,2410.0,0.0043481]
[1769895916498,3.98561241,2410.7,2410.0,0.0043481]
[1769895916693,0.20769,2410.7,2410.0,4.01818965]
[1769895918901,2.435,2411.3,2410.0,4.01818965]
[1769895919102,0.20764,2411.2,2410.0,4.01818965]
[1769895919704,7.09992241,2411.6,2410.0,4.01818965]
[1769895919906,9.53492241,2411.6,2410.1,4.01384155]
[1769895920097,5.757,2411.6,2410.1,4.01384155]
[1769895920298,0.2076,2411.7,2410.1,7.65349349]
[1769895920503,0.2076,2411.7,2410.2,4.01384155]
[1769895920699,0.20761,2411.6,2410.2,4.01384155]
[1769895921407,0.20762,2411.5,2410.2,4.01384155]
[1769895921608,3.98554241,2411.5,2410.2,4.01384155]
[1769895922407,0.20762,2411.4,2410.2,4.01384155]
[1769895923804,0.20762,2411.4,2410.3,4.01384155]
[1769895924505,0.20762,2411.4,2410.4,4.01384155]
[1769895925111,3.77792241,2411.3,2410.2,7.53140635]
[1769895925404,0.20766,2411.0,2410.1,4.01384155]
[1769895925604,2.64262,2411.5,2410.2,4.01384155]
[1769895925811,2.64262,2411.5,2410.3,4.01384155]
[1769895926008,3.77792241,2411.2,2410.3,4.01384155]
[1769895926306,3.77792241,2410.4,2409.5,7.65349349]
[1769895926506,3.98563241,2410.4,2409.5,4.01384155]
[1769895927010,0.20767,2410.9,2409.5,4.01384155]
[1769895927311,0.2111115,2410.9,2409.8,4.01384155]
[1769895927907,3.78136391,2410.9,2409.8,4.01384155]
[1769895928106,0.20769,2410.7,2409.8,4.01384155]
[1769895928909,3.98563241,2410.4,2409.5,4.0176833]
[1769895929906,0.20771,2410.4,2409.5,4.0176833]
[1769895930203,0.20772,2410.3,2409.5,4.0176833]
[1769895930408,3.98564241,2410.3,2409.5,0.00384175]
[1769895930708,3.77792241,2410.2,2409.2,4.01384155]
[1769895931407,0.20777,2409.8,2409.0,7.59323636]
[1769895931610,3.98569241,2409.7,2408.6,10.97549349]
[1769895931907,3.98572241,2409.4,2408.4,7.521024]
[1769895932104,3.98572241,2409.4,2408.2,7.65349349]
[1769895932303,0.2078,2409.4,2408.3,4.01384155]
[1769895932704,0.2078,2409.4,2408.3,4.01796147]
[1769895933813,3.98572241,2409.4,2408.3,4.01796147]
[1769895934014,0.20782,2409.2,2408.3,4.01796147]
[1769895934213,2.64634459,2409.2,2408.3,4.01796147]
[1769895934815,0.20785,2408.8,2407.9,4.01384155]
[1769895935710,0.20785,2408.8,2407.9,4.01865471]
[1769895935907,3.98577241,2408.8,2407.9,4.01865471]
[1769895936110,3.98577241,2408.8,2407.9,0.00481316]
[1769895936311,0.20785,2408.8,2408.0,4.01384155]
[1769895936913,4.20655861,2408.7,2407.9,0.00481316]
[1769895937109,2.83835067,2409.2,2407.4,7.02265194]
[1769895937110,3.99869861,2408.5,2407.4,3.67788995]
[1769895937716,0.20789,2408.4,2407.4,3.67788995]
[1769895938112,0.20789,2408.4,2407.4,3.68082578]
[1769895938516,4.20658861,2408.4,2407.4,3.68082578]
[1769895938923,0.20789,2408.4,2407.4,3.68082578]
[1769895940521,4.20658861,2408.4,2407.4,3.68082578]
[1769895941820,6.64358861,2408.4,2407.4,3.68082578]
[1769895942421,0.20789,2408.4,2407.4,3.68082578]
[1769895943619,3.66212051,2408.9,2407.4,3.68082578]
[1769895943823,2.437,2408.8,2407.4,3.68082578]
[1769895944024,2.64485,2408.8,2407.4,3.68082578]
[1769895944419,0.20785,2408.8,2407.4,3.68082578]
[1769895944725,0.61117067,2409.2,2407.7,3.92203621]
[1769895944924,3.66212051,2408.7,2407.7,3.92203621]
[1769895945124,6.30699051,2408.6,2407.7,3.92203621]
[1769895945627,3.87000051,2408.4,2407.4,3.92497204]
[1769895946824,3.87001051,2408.3,2407.4,3.92497204]
[1769895947427,0.20789,2408.3,2407.4,3.92497204]
[1769895947629,2.64489,2408.3,2407.4,3.92497204]
[1769895948329,3.66212051,2408.2,2407.4,0.00293583]
[1769895948529,3.66212051,2408.2,2407.4,3.92497204]
[1769895948730,3.87006051,2407.8,2406.7,3.92203621]
[1769895948926,0.20794,2407.8,2406.7,3.92203621]
[1769895949626,0.20794,2407.8,2406.7,3.92693918]
[1769895950726,3.66212051,2407.6,2406.4,3.92203621]
[1769895951032,0.20798,2407.4,2406.4,3.92203621]
[1769895951426,2.437,2407.7,2406.4,3.92203621]
[1769895951829,2.44017058,2407.7,2406.4,3.92666831]
[1769895952031,2.64812058,2407.7,2406.4,3.92666831]
[1769895952232,0.20795,2407.6,2406.4,3.92666831]
[1769895952433,0.20798,2407.3,2406.4,3.92666831]
[1769895952627,0.20801,2406.9,2406.4,3.92666831]
[1769895953030,0.20801,2406.9,2406.1,7.24603621]
[1769895953330,0.20804,2406.7,2406.1,3.92203621]
[1769895954022,0.20804,2406.7,2406.1,3.92669988]
[1769895955030,0.20804,2406.7,2405.5,7.02065194]
[1769895955031,0.20804,2406.7,2405.8,3.92203621]
[1769895955227,3.87016051,2406.7,2405.8,3.92203621]
[1769895955928,3.87016051,2406.7,2405.8,3.92536788]
[1769895956426,3.87016051,2406.7,2405.8,0.00333167]
[1769895957036,0.20806,2406.4,2405.8,0.00333167]
[1769895957233,0.20806,2406.4,2405.5,3.92203621]
[1769895957433,3.87019051,2406.3,2405.5,3.92203621]
[1769895957928,0.20802,2406.9,2405.5,3.92203621]
[1769895958133,0.20802,2406.9,2405.7,6.33794753]
[1769895958329,3.87014051,2406.8,2405.8,3.92203621]
[1769895959836,3.66212051,2406.4,2405.5,0.0034519]
[1769895960335,3.66212051,2406.4,2405.5,2.41936322]
[1769895960533,3.87013051,2407.0,2405.7,2.41591132]
[1769895960737,0.20801,2407.0,2405.8,2.41591132]
[1769895960937,0.20801,2407.0,2406.1,2.41591132]
[1769895961133,0.20801,2407.0,2406.0,2.41591132]
[1769895961329,0.20801,2407.0,2406.1,6.40606407]
[1769895961529,3.87014051,2406.8,2405.9,3.63965194]
[1769895961734,3.87014051,2406.8,2405.9,7.56168815]
[1769895962035,3.87017051,2406.5,2405.5,3.64310384]
[1769895962237,3.87017051,2406.5,2405.6,3.92203621]
[1769895963636,0.20805,2406.5,2405.6,3.92203621]
[1769895963935,0.20805,2406.5,2405.6,7.56168815]
[1769895964135,0.20805,2406.5,2405.7,3.92203621]
[1769895964332,3.66212051,2406.8,2405.8,3.92203621]
[1769895964529,0.20796,2407.5,2406.5,3.63965194]
[1769895964733,0.20796,2407.5,2406.6,3.92203621]
[1769895964734,3.87008051,2407.5,2406.6,3.92203621]
[1769895964934,0.20798,2407.3,2406.6,3.92203621]
[1769895967033,0.00317058,2407.7,2406.6,3.92203621]
[1769895967236,4.11789343,2408.4,2406.8,3.6894194]
[1769895967443,0.20788,2408.4,2407.2,7.32907134]
[1769895967643,3.91001343,2408.7,2407.4,3.6894194]
[1769895968038,3.91001343,2408.7,2407.5,3.6894194]
[1769895968237,3.9145434,2408.7,2407.5,3.69423131]
[1769895969437,3.9145434,2408.7,2407.6,7.32907134]
[1769895969438,0.00452997,2408.7,2407.6,7.32907134]
[1769895969637,0.00452997,2408.7,2407.7,3.6894194]
[1769895971040,0.00452997,2408.7,2407.7,7.32907134]
[1769895971237,3.91001343,2409.6,2408.2,3.6894194]
[1769895971539,3.91001343,2409.4,2408.3,3.6894194]
[1769895971739,0.20779,2409.5,2408.3,7.32907134]
[1769895971936,0.20779,2409.5,2408.4,3.6894194]
[1769895972142,0.21180476,2409.5,2408.4,3.6894194]
[1769895972538,0.00401476,2409.5,2408.6,3.6894194]
[1769895973246,6.55576343,2410.0,2408.6,3.6894194]
[1769895973446,4.11776343,2410.0,2408.7,3.6894194]
[1769895974138,4.11779343,2409.6,2408.7,3.6894194]
[1769895974343,4.11779343,2409.6,2408.0,9.45897279]
[1769895974344,3.91001343,2409.2,2408.1,3.6894194]
[1769895974737,0.20782,2409.1,2408.1,3.6894194]
[1769895977950,6.34801343,2409.6,2408.1,3.6894194]
[1769895978139,3.91001343,2409.5,2408.1,3.6894194]
[1769895978344,4.11780343,2409.5,2408.1,3.6894194]
[1769895981949,3.91001343,2409.3,2408.1,3.6894194]
[1769895982150,3.91001343,2409.3,2407.9,3.6894194]
[1769895982759,3.91001343,2409.8,2407.9,3.6894194]
[1769895982960,4.11777343,2409.8,2408.1,3.6894194]
[1769895983155,0.20777,2409.7,2408.1,3.6894194]
[1769895983457,3.91001343,2408.9,2407.6,7.63163212]
[1769895983655,3.91001343,2408.9,2407.6,3.6894194]
[1769895984057,3.91001343,2408.7,2407.5,0.00481191]
[1769895984254,3.91001343,2408.4,2407.5,0.00481191]
[1769895984454,0.20788,2408.5,2407.5,3.69423131]
[1769895985355,4.11789343,2408.5,2407.5,3.69423131]
[1769895986255,3.91001343,2408.3,2407.5,0.00481191]
[1769895986457,3.91344105,2408.3,2407.5,0.00481191]
[1769895987256,3.91344105,2408.3,2406.9,7.0914194]
[1769895987457,3.91001343,2408.1,2406.9,10.73107134]
[1769895988060,3.91001343,2408.1,2406.9,7.0914194]
[1769895988366,3.91001343,2408.1,2406.9,14.62274457]
[1769895989262,4.11792343,2408.1,2406.9,14.62274457]
[1769895989460,3.91001343,2407.6,2406.8,3.9145753]
[1769895990056,3.91001343,2407.6,2406.5,3.324]
[1769895990458,3.91001343,2407.6,2406.5,3.32735387]
[1769895990654,4.11797343,2407.6,2406.5,3.32735387]
[1769895991153,4.11797343,2407.6,2406.5,0.00335387]
[1769895991759,3.91001343,2407.6,2406.5,3.69277327]
[1769895991953,0.20792,2408.0,2406.5,8.36702036]
[1769895992154,3.91001343,2408.2,2407.0,3.6894194]
[1769895992357,3.91001343,2408.2,2407.1,3.6894194]
[1769895992762,0.00342762,2408.3,2407.1,3.6894194]
[1769895993358,0.00342762,2408.3,2407.3,3.6894194]
[1769895993768,0.00342762,2408.3,2407.4,3.6894194]
[1769895994059,0.00342762,2408.3,2407.3,4.67424709]
[1769895994060,0.00342762,2408.3,2407.5,8.36366649]
[1769895994262,0.00342762,2408.3,2407.6,3.6894194]
[1769895994862,0.43813703,2410.0,2408.3,3.6894194]
[1769895994863,3.91001343,2409.7,2408.3,3.6894194]
[1769895995062,0.43813703,2410.0,2408.5,3.6894194]
[1769895995063,4.34815046,2410.0,2408.5,3.6894194]
[1769895995262,4.34815046,2410.0,2408.6,3.6894194]
[1769895995560,4.34815046,2410.0,2408.7,3.6894194]
[1769895995766,4.35346446,2410.0,2408.8,3.6894194]
[1769895996062,4.35346446,2410.0,2408.9,3.6894194]
[1769895997866,4.35346446,2410.0,2408.7,0.00305477]
[1769895998067,3.90622111,2409.7,2408.7,0.00305477]
[1769895998662,4.34967214,2410.0,2408.7,3.74490552]
[1769895999564,4.34967214,2410.0,2408.8,3.74185075]
[1769896000362,4.34967214,2410.0,2408.7,0.00305477]
[1769896000769,4.11400111,2409.6,2408.7,0.00305477]
[1769896000966,3.90622111,2409.5,2408.7,0.00305477]
[1769896004371,2.64478,2409.6,2408.7,3.87424064]
[1769896004968,6.4790251,2409.6,2408.7,3.87424064]
[1769896005570,3.8342451,2409.5,2408.7,0.00305477]
[1769896005964,3.8342451,2409.1,2408.3,3.93962055]
[1769896006169,3.8342451,2409.1,2407.9,8.75556761]
[1769896006371,3.8342451,2409.1,2408.0,3.92385695]
[1769896006672,4.0420851,2408.9,2407.7,4.88438174]
[1769896006869,4.0420851,2408.9,2407.8,7.79504282]
[1769896007069,4.0420851,2408.9,2407.9,3.92385695]
[1769896007265,3.8342451,2408.9,2407.8,3.92795017]
[1769896007468,4.0421051,2408.7,2407.8,0.00409322]
[1769896007670,3.8342451,2408.5,2407.8,0.00409322]
[1769896008372,4.0421251,2408.5,2407.8,0.00409322]
[1769896008672,3.8342451,2408.3,2407.4,3.92385695]
[1769896008972,3.8342451,2408.3,2407.1,3.92385695]
[1769896009273,3.8342451,2408.3,2406.8,3.407]
[1769896009274,3.8342451,2407.9,2406.7,3.92385695]
[1769896009477,3.8342451,2407.9,2406.6,7.79504282]
[1769896009770,3.8387254,2407.9,2406.8,3.87118587]
[1769896012271,0.0044803,2407.9,2406.8,3.87118587]
[1769896012576,4.0421151,2408.5,2407.0,3.87118587]
[1769896012765,3.8342451,2408.9,2407.3,3.87118587]
[1769896012971,3.8342451,2408.9,2407.5,3.87118587]
[1769896013474,3.83874592,2408.9,2407.5,3.87118587]
[1769896013868,4.04658592,2408.9,2407.5,3.87118587]
[1769896014472,4.04658592,2408.9,2407.6,3.87118587]
[1769896015777,3.83874592,2408.9,2407.6,3.87118587]
[1769896015973,3.83874592,2408.9,2407.7,3.87118587]
[1769896016472,3.83874592,2408.9,2407.5,7.79504282]
[1769896016676,3.83874592,2408.9,2407.5,3.87118587]
[1769896017077,3.83874592,2408.9,2407.5,7.79504282]
[1769896017274,3.83874592,2408.9,2407.5,3.87118587]
[1769896017674,3.83874592,2408.9,2407.4,3.92385695]
[1769896017879,3.8342451,2408.7,2407.3,7.24885695]
[1769896018073,3.8342451,2408.7,2407.4,7.79504282]
[1769896018274,3.8342451,2408.7,2407.6,3.87118587]
[1769896018577,3.8342451,2408.7,2407.7,3.87118587]
[1769896018874,0.20785,2408.8,2407.7,3.87118587]
[1769896019074,0.20785,2408.8,2407.7,7.79504282]
[1769896019275,0.20785,2408.8,2407.8,3.92385695]
[1769896019276,4.0420951,2408.8,2407.8,3.92385695]
[1769896019577,4.0420951,2408.8,2407.8,7.5840548]
[1769896020275,4.0420951,2408.8,2407.8,11.45524067]
[1769896020674,0.00450082,2408.9,2407.9,11.45524067]
[1769896020978,3.8342451,2409.3,2408.3,3.87118587]
[1769896021172,3.8342451,2409.3,2408.4,7.79504282]
[1769896021473,6.2712451,2409.7,2408.6,3.87118587]
[1769896021780,6.27467791,2409.7,2408.7,3.87118587]
[1769896022677,3.8342451,2409.6,2408.7,3.87118587]
[1769896023176,0.00343281,2409.7,2408.7,10.23402707]
[1769896023373,3.8342451,2410.2,2409.0,6.31017012]
[1769896023678,3.8342451,2410.2,2409.0,10.23402707]
[1769896023873,3.8342451,2410.2,2408.9,6.3628412]
[1769896024071,3.8342451,2409.8,2408.6,2.44236098]
[1769896024275,3.8342451,2409.6,2408.6,6.36621793]
[1769896024674,3.8342451,2409.6,2408.6,2.44236098]
[1769896025078,3.8342451,2409.6,2408.6,0.00337673]
[1769896025480,4.0420251,2409.6,2408.6,0.00337673]